bitfinex/quotes_SOLUSD_20250920
["timestamp","ask_amount","ask_price","bid_price","bid_amount"]
[1758380416700,14.85463332,239.27,239.25,32.48]
[1758380417198,14.85463332,239.27,239.24,0.65]
[1758380417400,2.9978724,239.26,239.25,32.46]
[1758380417579,2.9978724,239.26,239.22,14.24559401]
[1758380417580,2.2878724,239.26,239.22,14.24559401]
[1758380417780,2.2878724,239.26,239.23,33.11]
[1758380418300,14.85463332,239.26,239.23,33.11]
[1758380418890,12.56676092,239.26,239.23,32.46]
[1758380419201,12.56676092,239.26,239.24,0.65]
[1758380420095,12.56676092,239.26,239.25,32.46]
[1758380420899,16.74631454,239.26,239.25,32.46]
[1758380421285,19.74418694,239.26,239.2,26.71055375]
[1758380421489,2.2878724,239.22,239.21,32.46]
[1758380421698,2.2878724,239.23,239.21,32.46]
[1758380421898,0.71,239.25,239.21,33.11]
[1758380422088,2.2878724,239.23,239.21,33.11]
[1758380422287,2.2878724,239.23,239.21,32.46]
[1758380422494,12.56886692,239.23,239.22,0.65]
[1758380423006,2.2878724,239.25,239.22,0.65]
[1758380423305,12.56781382,239.24,239.23,0.65]
[1758380423802,4.17959701,239.26,239.21,32.46]
[1758380423986,12.56781383,239.25,239.22,0.65]
[1758380424186,16.74757524,239.25,239.22,0.65]
[1758380424494,19.03544764,239.25,239.22,0.65]
[1758380424697,2.2878724,239.24,239.21,32.46]
[1758380424898,2.2878724,239.24,239.22,0.65]
[1758380425496,14.85568623,239.24,239.22,0.65]
[1758380425890,14.85568623,239.24,239.21,32.46]
[1758380426289,12.56781383,239.24,239.21,33.15]
[1758380426483,15.55568623,239.24,239.21,32.46]
[1758380426686,14.85568623,239.24,239.21,33.15]
[1758380426904,12.56781383,239.24,239.21,33.15]
[1758380427096,14.85568623,239.24,239.21,33.15]
[1758380427699,19.03562157,239.24,239.21,33.15]
[1758380428099,19.03562157,239.24,239.22,0.69]
[1758380428404,30.60291862,239.81,239.24,13.59559401]
[1758380428405,4.69375855,239.37,239.24,13.59559401]
[1758380428708,0.7,239.31,239.25,33.13]
[1758380429009,2.9878724,239.31,239.26,0.69]
[1758380429192,2.9878724,239.31,239.27,0.69]
[1758380429391,2.9878724,239.31,239.28,32.44]
[1758380429615,4.17885499,239.3,239.28,32.44]
[1758380430201,6.46672739,239.3,239.28,32.44]
[1758380430422,2.2878724,239.29,239.28,32.44]
[1758380430705,2.9878724,239.29,239.28,32.44]
[1758380431818,6.46690202,239.29,239.28,32.44]
[1758380432220,7.16690202,239.29,239.28,32.44]
[1758380432703,7.16690202,239.29,239.24,13.59559401]
[1758380432908,2.9878724,239.28,239.25,32.44]
[1758380433320,2.9878724,239.28,239.24,14.28559401]
[1758380433512,2.9878724,239.28,239.25,32.44]
[1758380434015,12.56623453,239.3,239.26,0.69]
[1758380434220,2.2878724,239.29,239.27,0.69]
[1758380434521,2.2878724,239.29,239.28,32.44]
[1758380434712,19.03307653,239.3,239.28,32.44]
[1758380435420,19.03307653,239.3,239.28,33.13]
[1758380435801,14.85410693,239.3,239.28,33.13]
[1758380436119,19.03298028,239.3,239.28,33.13]
[1758380436320,16.74510788,239.3,239.28,33.13]
[1758380436523,19.03298028,239.3,239.28,33.13]
[1758380437021,19.03299221,239.3,239.28,33.13]
[1758380437724,16.74511981,239.3,239.28,33.13]
[1758380437932,19.03299221,239.3,239.28,33.13]
[1758380438125,6.46675283,239.3,239.28,33.13]
[1758380438619,6.46675283,239.3,239.28,32.44]
[1758380439325,9.27639372,239.3,239.28,32.44]
[1758380440725,6.98852132,239.3,239.28,32.44]
[1758380441110,9.27639372,239.3,239.28,32.44]
[1758380441312,6.98852132,239.3,239.28,32.44]
[1758380441518,9.27639372,239.3,239.28,32.44]
[1758380441820,1.46253979,239.29,239.28,32.44]
[1758380442225,4.58779634,239.29,239.28,32.44]
[1758380442426,5.93804958,239.29,239.28,32.44]
[1758380442610,7.40058937,239.29,239.28,32.44]
[1758380443106,5.93804958,239.29,239.28,32.44]
[1758380443310,15.37902756,239.31,239.28,37.30920427]
[1758380443501,5.93919405,239.3,239.29,0.69]
[1758380443915,3.12640102,239.3,239.29,0.69]
[1758380444511,3.12640102,239.3,239.29,18.46462363]
[1758380444711,2.81279303,239.33,239.29,18.46462363]
[1758380444913,16.83893606,239.34,239.29,17.77462363]
[1758380445224,5.94026373,239.33,239.3,0.69]
[1758380445446,12.56360324,239.33,239.31,33.11]
[1758380446210,12.56360324,239.33,239.31,32.42]
[1758380446410,12.56360324,239.33,239.32,0.69]
[1758380446621,18.5078447,239.33,239.32,0.69]
[1758380447308,15.37932125,239.33,239.31,32.42]
[1758380447512,2.81571801,239.32,239.31,33.11]
[1758380448737,4.2782578,239.34,239.31,33.11]
[1758380449108,4.2782578,239.34,239.32,0.69]
[1758380449611,4.2782578,239.34,239.31,32.42]
[1758380449835,4.2782578,239.34,239.31,33.11]
[1758380450208,1.46253979,239.34,239.31,33.11]
[1758380450730,4.2782578,239.34,239.31,33.11]
[1758380450933,5.64073285,239.34,239.31,33.11]
[1758380451139,0.7,239.33,239.32,32.4]
[1758380452225,8.45645086,239.34,239.32,32.4]
[1758380452541,2.81571801,239.33,239.32,32.4]
[1758380452836,6.99408942,239.33,239.32,32.4]
[1758380453013,4.17837141,239.33,239.32,32.4]
[1758380454715,4.17815659,239.34,239.32,32.4]
[1758380454916,5.64069638,239.34,239.32,32.4]
[1758380455116,8.45641439,239.34,239.32,32.4]
[1758380455336,2.81571801,239.33,239.32,32.4]
[1758380455732,5.64069638,239.34,239.32,32.4]
[1758380455940,6.99370004,239.35,239.32,32.4]
[1758380456240,3.12773197,239.34,239.33,0.71]
[1758380456423,2.81571801,239.34,239.33,0.71]
[1758380456628,5.64052182,239.35,239.33,0.71]
[1758380456827,8.45623983,239.35,239.33,0.71]
[1758380457024,2.81571801,239.34,239.33,0.71]
[1758380457226,6.9938746,239.34,239.33,0.71]
[1758380457419,4.17815659,239.34,239.33,0.71]
[1758380457621,4.17815659,239.34,239.32,32.4]
[1758380457819,4.17815659,239.34,239.32,33.11]
[1758380458735,4.17798203,239.35,239.32,33.11]
[1758380458939,5.64052182,239.35,239.32,33.11]
[1758380459350,1.46253979,239.35,239.33,0.71]
[1758380460929,5.64053107,239.35,239.33,0.71]
[1758380461126,4.17799128,239.35,239.33,0.71]
[1758380461318,5.64053107,239.35,239.33,0.71]
[1758380462119,1.46253979,239.34,239.33,0.71]
[1758380462520,1.46253979,239.34,239.32,32.4]
[1758380462730,1.46253979,239.33,239.32,32.4]
[1758380463244,1.46253979,239.33,239.32,33.06]
[1758380463545,1.46253979,239.33,239.32,33.04]
[1758380464360,4.17800345,239.35,239.32,33.04]
[1758380464647,1.46253979,239.33,239.32,32.38]
[1758380465136,1.46253979,239.33,239.32,33.04]
[1758380465844,4.17800345,239.35,239.32,33.04]
[1758380466053,1.46253979,239.33,239.32,32.38]
[1758380466646,1.46253979,239.33,239.32,33.04]
[1758380466849,4.17800345,239.35,239.32,33.04]
[1758380467039,1.46253979,239.33,239.32,32.38]
[1758380467241,1.46253979,239.33,239.32,44.74621811]
[1758380467540,1.46253979,239.33,239.32,45.40621811]
[1758380469626,4.17800345,239.35,239.32,45.40621811]
[1758380469841,1.46253979,239.33,239.32,44.74621811]
[1758380470746,1.46253979,239.33,239.32,45.40621811]
[1758380473152,4.17798203,239.35,239.32,45.40621811]
[1758380473345,1.46253979,239.33,239.32,45.40621811]
[1758380474263,1.46253979,239.33,239.32,44.74621811]
[1758380474470,1.46253979,239.33,239.32,45.40621811]
[1758380474962,1.46253979,239.33,239.32,45.38621811]
[1758380476165,4.17798203,239.35,239.32,45.38621811]
[1758380476343,1.46253979,239.33,239.32,45.38621811]
[1758380476743,1.46253979,239.33,239.32,12.36621811]
[1758380476958,1.46253979,239.33,239.32,32.36]
[1758380477560,0.7,239.34,239.32,32.36]
[1758380477755,1.46253979,239.33,239.32,32.36]
[1758380478370,5.64087096,239.33,239.32,32.36]
[1758380479358,1.46253979,239.33,239.32,32.36]
[1758380480468,4.17815659,239.34,239.32,32.36]
[1758380480654,5.64087096,239.33,239.32,32.36]
[1758380481567,4.17833117,239.33,239.32,32.36]
[1758380481767,5.64087096,239.33,239.32,33.02]
[1758380482267,1.46253979,239.33,239.32,33.02]
[1758380482465,1.46253979,239.34,239.32,33.02]
[1758380482653,1.46253979,239.34,239.33,0.66]
[1758380483663,4.27954341,239.36,239.33,0.66]
[1758380483973,1.46253979,239.36,239.33,0.66]
[1758380484270,43.1776551,239.37,239.33,0.66]
[1758380484474,1.46253979,239.36,239.33,0.66]
[1758380487269,1.46253979,239.36,239.34,0.71]
[1758380487473,1.46253979,239.36,239.35,32.36]
[1758380488260,1.46253979,239.36,239.35,33.07]
[1758380490883,1.46253979,239.36,239.35,32.36]
[1758380491679,4.17745843,239.38,239.35,32.34]
[1758380491975,1.46253979,239.36,239.35,33.05]
[1758380492871,3.01680562,239.39,239.35,33.05]
[1758380493056,1.46253979,239.37,239.36,0.71]
[1758380493765,1.46253979,239.38,239.36,0.71]
[1758380495350,1.46253979,239.38,239.35,32.34]
[1758380495572,1.46253979,239.38,239.36,0.71]
[1758380496879,0.2,239.39,239.38,13.59559401]
[1758380497080,1.66253979,239.39,239.38,0.71]
[1758380497268,1.66253979,239.39,239.38,32.34]
[1758380498360,0.2,239.39,239.38,33.05]
[1758380511493,0.2,239.39,239.38,46.64559401]
[1758380516092,0.2,239.39,239.38,46.92991715]
[1758380516709,0.2,239.39,239.38,51.10737558]
[1758380517285,0.2,239.39,239.38,46.88991715]
[1758380518810,0.2,239.39,239.38,14.58991715]
[1758380518984,0.2,239.39,239.38,46.88991715]
[1758380519896,0.2,239.39,239.38,49.17295055]
[1758380520106,0.2,239.39,239.38,46.88991715]
[1758380520615,0.2,239.39,239.38,53.35040898]
[1758380523315,0.2,239.39,239.38,21.05040898]
[1758380523491,0.2,239.39,239.38,53.33040898]
[1758380529894,0.2,239.39,239.38,21.05040898]
[1758380530094,0.2,239.39,239.38,53.33040898]
[1758380532108,0.2,239.39,239.38,52.62040898]
[1758380532404,0.2,239.39,239.38,20.34040898]
[1758380532605,0.2,239.39,239.38,50.31737558]
[1758380533111,0.2,239.39,239.38,50.98737558]
[1758380534118,0.2,239.39,239.38,53.27040898]
[1758380534502,0.2,239.39,239.38,13.87991715]
[1758380534704,0.2,239.39,239.38,50.98737558]
[1758380535222,0.2,239.39,239.38,53.27040898]
[1758380536790,0.2,239.39,239.38,56.08487599]
[1758380540715,0.1,239.43,239.39,13.87991715]
[1758380541020,0.1,239.43,239.42,2.56735654]
[1758380541405,0.1,239.43,239.42,35.49735654]
[1758380541721,0.1,239.43,239.42,33.21432314]
[1758380541899,0.1,239.43,239.42,39.67411704]
[1758380542095,0.1,239.43,239.42,41.34814244]
[1758380542314,0.1,239.43,239.42,39.06510904]
[1758380542526,0.1,239.43,239.42,41.34814244]
[1758380544514,0.1,239.43,239.42,39.06510904]
[1758380544716,0.1,239.43,239.42,41.34814244]
[1758380545229,0.1,239.43,239.42,39.06510904]
[1758380545436,0.1,239.43,239.42,41.34814244]
[1758380545922,0.1,239.43,239.42,54.92373645]
[1758380546517,0.1,239.43,239.42,22.68373645]
[1758380546717,0.1,239.43,239.42,54.92373645]
[1758380546925,0.1,239.43,239.42,22.68373645]
[1758380547310,0.1,239.43,239.42,54.92373645]
[1758380548320,0.1,239.43,239.42,22.68373645]
[1758380548629,0.1,239.43,239.42,54.92373645]
[1758380548821,0.1,239.43,239.42,22.68373645]
[1758380549004,0.1,239.43,239.42,54.92373645]
[1758380549540,0.1,239.43,239.42,22.68373645]
[1758380550329,0.1,239.46,239.43,13.87991715]
[1758380550511,0.1,239.46,239.45,16.16295055]
[1758380550712,0.1,239.46,239.45,48.40295055]
[1758380551015,0.1,239.46,239.45,16.81295055]
[1758380551332,0.1,239.46,239.45,49.47057427]
[1758380551516,0.1,239.46,239.45,53.64681148]
[1758380551719,0.1,239.46,239.45,53.03745326]
[1758380551919,0.1,239.46,239.45,55.32048666]
[1758380552919,0.1,239.46,239.45,23.08048666]
[1758380553120,0.1,239.46,239.45,55.32048666]
[1758380554426,0.1,239.47,239.45,55.32048666]
[1758380554631,0.1,239.47,239.46,16.81295055]
[1758380555254,0.1,239.47,239.46,18.48648568]
[1758380555567,0.1,239.47,239.46,50.70648568]
[1758380555728,0.1,239.49,239.48,44.79559401]
[1758380555935,0.1,239.49,239.48,79.71619881]
[1758380556129,0.1,239.49,239.48,80.36619881]
[1758380556644,0.1,239.49,239.48,82.03966393]
[1758380557151,0.1,239.49,239.48,81.90641567]
[1758380557645,0.1,239.49,239.48,86.08212971]
[1758380558027,0.1,239.49,239.48,53.86212971]
[1758380558330,0.1,239.49,239.48,86.08212971]
[1758380559726,0.1,239.53,239.49,13.87991715]
[1758380560035,0.1,239.53,239.52,16.16295055]
[1758380560233,0.1,239.53,239.52,48.38295055]
[1758380560530,0.1,239.53,239.52,54.93978715]
[1758380560731,0.1,239.53,239.52,59.11480385]
[1758380561443,0.1,239.53,239.52,59.76480385]
[1758380562153,0.1,239.59,239.58,13.59559401]
[1758380562345,0.1,239.59,239.57,13.87991715]
[1758380562535,0.8,239.59,239.58,45.81559401]
[1758380565757,0.8,239.59,239.58,45.79559401]
[1758380566058,0.8,239.59,239.58,13.59559401]
[1758380566234,0.8,239.59,239.58,45.79559401]
[1758380568355,2.25830726,239.59,239.54,0.28432314]
[1758380568555,4.9737969,239.59,239.55,32.2]
[1758380568861,4.9737969,239.59,239.53,13.59559401]
[1758380568862,1.45830726,239.57,239.56,32.2]
[1758380569163,0.7,239.57,239.56,32.2]
[1758380571262,0.7,239.57,239.56,45.79559401]
[1758380572844,1.45830726,239.58,239.56,45.79559401]
[1758380573045,2.15830726,239.58,239.56,45.79559401]
[1758380575866,0.1,239.59,239.57,13.59559401]
[1758380576060,2.13830726,239.58,239.55,4.17445715]
[1758380576256,0.68,239.58,239.57,13.59559401]
[1758380576563,2.13830726,239.58,239.57,13.59559401]
[1758380578071,0.68,239.58,239.57,13.59559401]
[1758380580063,1.55830726,239.59,239.57,13.59559401]
[1758380580276,2.13830726,239.58,239.52,4.2737969]
[1758380580452,4.27381439,239.59,239.53,45.77559401]
[1758380580453,1.45830726,239.55,239.53,45.77559401]
[1758380580775,0.68,239.54,239.53,45.77559401]
[1758380580951,0.68,239.54,239.53,32.18]
[1758380581154,1.45830726,239.55,239.53,32.18]
[1758380581359,6.31264192,239.55,239.53,32.18]
[1758380581672,0.68,239.54,239.53,32.18]
[1758380582057,6.31264192,239.55,239.53,32.18]
[1758380583673,2.17830726,239.54,239.51,13.59559401]
[1758380583972,1.45830726,239.52,239.49,18.05543873]
[1758380584167,1.45830726,239.52,239.51,13.59559401]
[1758380585675,1.45830726,239.52,239.51,45.77559401]
[1758380586268,2.17830726,239.52,239.51,45.77559401]
[1758380586773,2.17830726,239.52,239.47,0.7]
[1758380587079,1.45830726,239.49,239.48,45.77559401]
[1758380587367,10.4359919,239.56,239.48,45.77559401]
[1758380587368,0.72,239.51,239.49,13.59559401]
[1758380587575,0.72,239.51,239.5,32.18]
[1758380587749,4.89433466,239.52,239.5,32.18]
[1758380587951,5.61433466,239.52,239.5,32.18]
[1758380588655,1.45830726,239.51,239.5,32.18]
[1758380590182,4.89433466,239.52,239.5,32.18]
[1758380590479,1.45830726,239.51,239.5,32.18]
[1758380590857,1.45830726,239.51,239.49,13.59559401]
[1758380590858,2.17830726,239.51,239.48,13.59559401]
[1758380591074,0.72,239.51,239.49,45.77559401]
[1758380591273,1.45830726,239.5,239.49,45.77559401]
[1758380592179,0.72,239.57,239.49,48.21822441]
[1758380592362,1.45830726,239.58,239.51,1.45830726]
[1758380592560,1.45830726,239.58,239.53,13.59559401]
[1758380592879,1.45830726,239.58,239.55,13.59559401]
[1758380593174,0.82,239.59,239.56,32.18]
[1758380593384,1.45830726,239.58,239.56,32.18]
[1758380594267,1.45830726,239.57,239.56,32.18]
[1758380596563,1.45830726,239.57,239.54,13.59559401]
[1758380596768,1.45830726,239.56,239.55,45.77559401]
[1758380597183,1.45830726,239.56,239.55,46.47559401]
[1758380599054,2.91202465,239.59,239.56,13.59559401]
[1758380599276,7.08582849,239.59,239.57,32.16]
[1758380599588,4.27380384,239.59,239.57,32.16]
[1758380600174,5.7321111,239.59,239.57,32.16]
[1758380600488,4.27380384,239.59,239.57,32.16]
[1758380600785,5.7321111,239.59,239.57,32.16]
[1758380601783,0.72,239.58,239.56,13.59559401]
[1758380601988,0.72,239.58,239.57,32.16]
[1758380602193,2.17830726,239.58,239.57,32.16]
[1758380602484,1.45830726,239.58,239.57,32.16]
[1758380603271,7.08660141,239.59,239.57,32.16]
[1758380603467,1.45830726,239.58,239.57,32.16]
[1758380603670,7.08660141,239.59,239.57,32.16]
[1758380603891,4.27110483,239.58,239.57,32.16]
[1758380604096,2.81279757,239.58,239.57,32.16]
[1758380604288,5.7321111,239.59,239.57,32.16]
[1758380604594,8.54490867,239.59,239.57,32.16]
[1758380604796,2.81279757,239.58,239.57,32.16]
[1758380605168,1.45830726,239.58,239.57,32.16]
[1758380605990,1.45830726,239.58,239.54,0.7]
[1758380606195,2.12830726,239.58,239.55,32.16]
[1758380606489,1.45830726,239.58,239.55,32.16]
[1758380606669,11.35770624,239.58,239.55,32.16]
[1758380606994,7.08660141,239.58,239.56,14.29559401]
[1758380607195,0.1,239.59,239.57,32.16]
[1758380607575,2.91445074,239.59,239.57,32.16]
[1758380607772,7.08826391,239.59,239.57,32.16]
[1758380608884,2.12830726,239.58,239.57,32.16]
[1758380609181,17.97497409,239.58,239.57,32.16]
[1758380609373,19.33111757,239.58,239.57,32.16]
[1758380609574,20.11942483,239.58,239.57,32.16]
[1758380610396,20.78942483,239.58,239.57,32.16]
[1758380610894,20.78942483,239.58,239.52,13.59559401]
[1758380611100,5.94223779,239.57,239.5,13.59559401]
[1758380611280,1.45830726,239.52,239.51,45.75559401]
[1758380611892,2.12830726,239.52,239.51,45.75559401]
[1758380612874,1.45830726,239.52,239.51,45.75559401]
[1758380613491,5.63332396,239.52,239.51,45.75559401]
[1758380614298,5.63332396,239.52,239.51,46.45559401]
[1758380614802,5.63332396,239.52,239.51,45.75559401]
[1758380621703,1.45830726,239.52,239.51,45.75559401]
[1758380621918,1.45830726,239.53,239.51,46.45559401]
[1758380622309,6.98946305,239.54,239.52,0.7]
[1758380622623,1.45830726,239.53,239.51,13.59559401]
[1758380622927,6.98946305,239.54,239.52,32.16]
[1758380623222,1.45830726,239.53,239.52,32.16]
[1758380623602,5.63314965,239.53,239.52,32.16]
[1758380625718,5.63314965,239.53,239.52,32.86]
[1758380625903,6.45553417,239.53,239.52,32.86]
[1758380626100,2.28069178,239.53,239.52,32.86]
[1758380626308,6.45553417,239.53,239.52,32.16]
[1758380627127,6.45553417,239.53,239.52,32.14]
[1758380628400,6.45553417,239.53,239.52,32.84]
[1758380628807,6.45553417,239.53,239.52,32.14]
[1758380629204,4.17466811,239.54,239.52,32.14]
[1758380629409,2.28069178,239.53,239.52,32.84]
[1758380629933,2.28069178,239.53,239.52,32.14]
[1758380630228,6.45553417,239.53,239.52,32.14]
[1758380631426,2.81478762,239.55,239.52,32.84]
[1758380631427,4.17466811,239.54,239.52,32.84]
[1758380631619,2.28069178,239.53,239.52,32.84]
[1758380632432,2.28069178,239.53,239.52,32.14]
[1758380632935,2.95069178,239.53,239.47,0.7]
[1758380633106,2.28069178,239.48,239.47,0.7]
[1758380633308,2.28069178,239.48,239.47,46.43559401]
[1758380633610,6.45640582,239.48,239.47,46.43559401]
[1758380637706,6.45640582,239.48,239.47,45.73559401]
[1758380637905,7.12640582,239.48,239.47,45.73559401]
[1758380638328,7.12640582,239.48,239.41,0.66]
[1758380638521,2.81377081,239.47,239.42,45.73559401]
[1758380638719,0.67,239.46,239.42,45.73559401]
[1758380638922,12.5562415,239.48,239.44,13.59559401]
[1758380639120,4.17555053,239.49,239.45,32.8]
[1758380639328,4.17555053,239.49,239.46,0.66]
[1758380639532,16.73074106,239.49,239.47,32.14]
[1758380639711,2.28069178,239.48,239.47,32.14]
[1758380640028,6.45640582,239.48,239.47,32.14]
[1758380640205,6.45640582,239.48,239.47,32.8]
[1758380641528,6.45640582,239.48,239.47,32.14]
[1758380643536,19.01159635,239.48,239.47,32.14]
[1758380644821,6.45640582,239.48,239.47,32.14]
[1758380645734,6.45640582,239.48,239.47,32.84]
[1758380647127,6.45640582,239.48,239.47,32.14]
[1758380649045,4.1755193,239.5,239.48,13.59559401]
[1758380649340,10.43770322,239.52,239.5,13.59559401]
[1758380649341,35.37516279,239.52,239.5,13.59559401]
[1758380649548,35.37516279,239.52,239.51,32.14]
[1758380649746,35.37516279,239.52,239.51,32.84]
[1758380650051,4.1748141,239.54,239.51,32.84]
[1758380650244,31.2,239.52,239.51,32.84]
[1758380650569,33.48069178,239.52,239.51,32.84]
[1758380650740,2.28069178,239.52,239.51,46.43559401]
[1758380652728,2.28069178,239.54,239.52,13.59559401]
[1758380653047,6.45536301,239.54,239.52,0.7]
[1758380653346,6.45536301,239.54,239.53,32.14]
[1758380653733,2.28069178,239.54,239.53,32.14]
[1758380655668,6.98741529,239.55,239.53,32.14]
[1758380655826,5.0935309,239.54,239.53,32.14]
[1758380656126,2.28069178,239.54,239.53,32.14]
[1758380657844,2.81283912,239.55,239.54,13.59559401]
[1758380658042,2.81283912,239.57,239.54,14.29559401]
[1758380658251,2.81283912,239.57,239.55,32.82]
[1758380658435,2.81283912,239.57,239.56,0.7]
[1758380660061,2.81283912,239.57,239.56,14.29559401]
[1758380660369,7.08680684,239.59,239.56,14.29559401]
[1758380660533,7.08680684,239.59,239.57,46.41559401]
[1758380660534,2.81283912,239.58,239.57,46.41559401]
[1758380660960,0.1,239.59,239.57,46.41559401]
[1758380661259,0.1,239.59,239.57,45.71559401]
[1758380661452,0.1,239.59,239.57,46.41559401]
[1758380661944,4.27380265,239.59,239.57,46.41559401]
[1758380662652,3.00069178,239.58,239.53,0.7]
[1758380662948,2.28069178,239.56,239.54,45.71559401]
[1758380663166,5.0935309,239.57,239.54,45.71559401]
[1758380663345,2.28069178,239.56,239.54,45.71559401]
[1758380663539,6.45511948,239.56,239.54,46.41559401]
[1758380664653,2.28069178,239.55,239.54,32.12]
[1758380664860,3.00069178,239.55,239.54,32.12]
[1758380665159,9.2679586,239.55,239.54,32.12]
[1758380665960,13.44245244,239.55,239.54,32.12]
[1758380667557,11.16176066,239.55,239.54,32.12]
[1758380667757,13.44245244,239.55,239.54,32.12]
[1758380669256,11.16176066,239.55,239.54,32.12]
[1758380669456,2.81283912,239.55,239.54,32.84]
[1758380669663,5.0935309,239.56,239.54,32.84]
[1758380669964,5.0935309,239.56,239.55,0.72]
[1758380670143,2.28069178,239.56,239.55,0.72]
[1758380670457,17.61675675,239.57,239.55,0.72]
[1758380670659,2.81283912,239.56,239.55,0.72]
[1758380670860,2.81283912,239.56,239.54,32.12]
[1758380671241,2.28069178,239.58,239.55,13.59559401]
[1758380671569,9.36608738,239.59,239.56,0.72]
[1758380671755,9.36608738,239.59,239.57,32.84]
[1758380672237,2.81143888,239.58,239.57,46.43559401]
[1758380672653,2.28069178,239.58,239.57,46.43559401]
[1758380673437,6.45466289,239.58,239.57,32.12]
[1758380673662,7.14466289,239.58,239.57,32.12]
[1758380674052,9.95610177,239.58,239.57,32.12]
[1758380676162,9.26610177,239.58,239.57,32.12]
[1758380676544,2.38069178,239.59,239.57,46.43559401]
[1758380678664,2.38069178,239.59,239.57,45.71559401]
[1758380678863,2.38069178,239.59,239.58,0.72]
[1758380679754,2.38069178,239.59,239.57,45.71559401]
[1758380679953,2.38069178,239.59,239.57,46.43559401]
[1758380681170,2.28069178,239.58,239.57,46.43559401]
[1758380684381,4.27395415,239.59,239.57,46.43559401]
[1758380684583,2.28069178,239.58,239.57,46.43559401]
[1758380685877,37.65466289,239.58,239.57,45.71559401]
[1758380686053,0.1,239.59,239.58,13.59559401]
[1758380686253,0.1,239.59,239.58,14.31559401]
[1758380694460,0.1,239.59,239.58,18.48956512]
[1758380699589,0.1,239.59,239.58,18.77388826]
[1758380700303,0.1,239.59,239.58,14.59991715]
[1758380700601,0.1,239.59,239.58,14.31559401]
[1758380700800,0.1,239.59,239.57,0.28432314]
[1758380700979,0.1,239.59,239.58,32.1]
[1758380701377,0.1,239.59,239.58,32.76]
[1758380701790,2.24846918,239.59,239.52,15.05406319]
[1758380701997,2.24846918,239.59,239.53,32.76]
[1758380702200,1.45846918,239.58,239.54,13.59559401]
[1758380702385,1.45846918,239.58,239.56,13.59559401]
[1758380702599,5.73228436,239.59,239.57,32.08]
[1758380702791,8.54244947,239.59,239.57,32.08]
[1758380702993,0.1,239.59,239.57,32.08]
[1758380703216,0.1,239.59,239.58,0.68]
[1758380703700,0.1,239.59,239.57,32.08]
[1758380703907,0.1,239.59,239.57,32.76]
[1758380704089,4.27381061,239.59,239.57,32.76]
[1758380704479,0.1,239.59,239.57,32.76]
[1758380707518,0.1,239.59,239.57,32.08]
[1758380707724,0.1,239.59,239.58,14.27559401]
[1758380709088,0.1,239.59,239.58,13.59559401]
[1758380710287,4.2737969,239.59,239.58,13.59559401]
[1758380710489,0.1,239.59,239.58,13.59559401]
[1758380711693,4.2737969,239.59,239.58,13.59559401]
[1758380711892,6.42226608,239.59,239.58,32.08]
[1758380712108,9.23528365,239.59,239.58,32.08]
[1758380712306,6.42226608,239.59,239.58,32.08]
[1758380712614,11.67238226,239.59,239.58,32.08]
[1758380712789,8.54528365,239.59,239.58,32.08]
[1758380712992,2.91301757,239.59,239.58,32.76]
[1758380713312,0.1,239.59,239.58,32.76]
[1758380713912,0.1,239.59,239.58,32.08]
[1758380714112,2.91301757,239.59,239.58,32.76]
[1758380714299,0.1,239.59,239.58,32.76]
[1758380714708,0.1,239.59,239.58,32.08]
[1758380715918,4.2737969,239.59,239.58,32.08]
[1758380716113,4.9637969,239.59,239.54,14.27559401]
[1758380716290,2.14846918,239.58,239.55,32.08]
[1758380716605,4.96148675,239.58,239.54,14.27559401]
[1758380716800,4.96148675,239.58,239.55,32.08]
[1758380717720,6.98710284,239.58,239.55,32.76]